[Event "Faroes Open 2018"]
[Site "Sandavagur"]
[Date "2018.07.09"]
[Round "3"]
[White "Petersen, Elias"]
[Black "Djurhuus, Arant"]
[Result "0-1"]
[ECO "C47"]
[WhiteElo "1035"]
[BlackElo "1703"]
[Annotator "NA"]
[PlyCount "74"]
[EventDate "2018.07.07"]
[EventType "swiss"]
[EventCountry "FAI"]
[SourceTitle "playchess.com"]
[Source "ChessBase"]
[SourceQuality "1"]
[TimeControl "40/5400+30:900+30"]

1. e4 {[%emt 0:00:00]} e5 {[%emt 0:00:00]} 2. Nf3 {[%emt 0:00:00]} Nf6 {[%emt 0:00:00]} 3. Nc3 {[%emt 0:01:04]} Nc6 {[%emt 0:00:06]} 4. Bc4 {[%emt 0:00:14]} Nxe4 {[%emt 0:00:11]} 5. O-O {[%emt 0:02:27]} Nxc3 {[%emt 0:07:27]} 6. dxc3 {[%emt 0:00:33]} Be7 {[%emt 0:00:46]} 7. Re1 {[%emt 0:01:15]} d6 {[%emt 0:00:39]} 8. Be3 {[%emt 0:01:24]} Bg4 {[%emt 0:04:26]} 9. h3 {[%emt 0:00:31]} Bh5 {[%emt 0:02:01]} 10. b4 {[%emt 0:05:37]} O-O {[%emt 0:16:08]} 11. Bb3 {[%emt 0:04:07]} Bf6 {[%emt 0:10:27]} 12. Qd5 {[%emt 0:02:59]} Qc8 {[%emt 0:04:02]} 13. Nh2 {[%emt 0:00:56]} Ne7 {[%emt 0:00:49]} 14. Qc4 {[%emt 0:00:53]} d5 {[%emt 0:01:12]} 15. Qd3 {[%emt 0:00:36]} Bg6 {[%emt 0:02:29]} 16. Qe2 {[%emt 0:00:41]} e4 {[%emt 0:02:31]} 17. Bd4 {[%emt 0:04:34]} Bxd4 {[%emt 0:03:02]} 18. cxd4 {[%emt 0:00:15]} c6 {[%emt 0:00:47]} 19. f3 {[%emt 0:01:07]} Nf5 20. c3 {[%emt 0:02:52]} Nd6 {[%emt 0:05:12]} 21. a4 {[%emt 0:05:23]} a6 {[%emt 0:03:01]} 22. c4 {[%emt 0:03:45]} dxc4 {[%emt 0:02:12]} 23. Bxc4 {[%emt 0:00:13]} Nxc4 {[%emt 0:00:54]} 24. Qxc4 {[%emt 0:00:10]} Re8 {[%emt 0:03:13]} 25. d5 {[%emt 0:01:31]} cxd5 {[%emt 0:02:41]} 26. Qxd5 {[%emt 0:00:13]} Rd8 {[%emt 0:02:03]} 27. Qb3 {[%emt 0:00:54]} Rd3 {[%emt 0:01:14]} 28. Qb2 {[%emt 0:03:37]} e3 {[%emt 0:08:22]} 29. Rac1 {[%emt 0:02:11]} Qd7 {[%emt 0:00:20]} 30. Kf1 {[%emt 0:02:47]} h5 {[%emt 0:04:23]} 31. a5 {[%emt 0:02:46]} Re8 {[%emt 0:01:13]} 32. f4 {[%emt 0:01:17]} Be4 {[%emt 0:03:54]} 33. Kg1 {[%emt 0:02:45]} Rd2 {[%emt 0:00:17]} 34. Qc3 {[%emt 0:00:53]} Rxg2+ {[%emt 0:00:14]} 35. Kf1 {[%emt 0:00:28]} Rf2+ {[%emt 0:01:04]} 36. Kg1 {[%emt 0:00:12]} Qxh3 {[%emt 0:00:21]} 37. Rc2 {[%emt 0:00:19]} Qg2# 0-1

[Event "Faroes Open 2018"]
[Site "Sandavagur"]
[Date "2018.07.09"]
[Round "4"]
[White "Nakar, Eylon"]
[Black "Kunin, Vitaly"]
[Result "1/2-1/2"]
[ECO "C41"]
[WhiteElo "2462"]
[BlackElo "2538"]
[Annotator "ChessBase"]
[PlyCount "48"]
[EventDate "2018.07.07"]
[EventType "swiss"]
[EventCountry "FAI"]
[SourceTitle "playchess.com"]
[Source "ChessBase"]
[SourceQuality "1"]
[TimeControl "40/5400+30:900+30"]

1. e4 {[%emt 0:00:00]} d6 {[%emt 0:00:00]} 2. d4 {[%emt 0:00:00]} Nf6 {[%emt 0:00:01]} 3. Nc3 {[%emt 0:00:00]} e5 {[%emt 0:00:24]} 4. Nf3 {[%emt 0:00:49]} Nbd7 {[%emt 0:00:17]} 5. Bc4 {[%emt 0:00:19]} Be7 {[%emt 0:00:00]} 6. O-O {[%emt 0:00:13]} O-O {[%emt 0:00:25]} 7. a4 {[%emt 0:00:26]} c6 {[%emt 0:00:13]} 8. h3 {[%emt 0:01:11]} Qc7 {[%emt 0:01:08]} 9. Re1 {[%emt 0:00:43]} h6 {[%emt 0:01:32]} 10. Be3 {[%emt 0:06:50]} Re8 {[%emt 0:01:19]} 11. d5 {[%emt 0:06:49]} Nf8 {[%emt 0:06:38]} 12. Bb3 {[%emt 0:39:42]} Ng6 {[%emt 0:03:30]} 13. a5 {[%emt 0:00:22]} c5 {[%emt 0:04:51]} 14. Bc4 {[%emt 0:07:47]} Bd7 {[%emt 0:07:15]} 15. Nd2 {[%emt 0:05:01]} Rf8 {[%emt 0:10:30]} 16. a6 {[%emt 0:04:26]} b6 {[%emt 0:02:39]} 17. Bb5 {[%emt 0:00:23]} Bxb5 {[%emt 0:00:33]} 18. Nxb5 {[%emt 0:00:02]} Qd7 {[%emt 0:00:17]} 19. c4 {[%emt 0:00:50]} Ne8 {[%emt 0:02:11]} 20. Qg4 {[%emt 0:00:46]} Qd8 {[%emt 0:00:30]} 21. Ra3 {[%emt 0:07:26]} Nf6 {[%emt 0:05:26]} 22. Qd1 {[%emt 0:02:58]} Ne8 {[%emt 0:00:31]} 23. Qg4 {[%emt 0:00:57]} Nf6 {[%emt 0:00:09]} 24. Qd1 {[%emt 0:00:04]} Ne8 {[%emt 0:00:09]} 1/2-1/2

[Event "Faroes Open 2018"]
[Site "Sandavagur"]
[Date "2018.07.09"]
[Round "4"]
[White "Jotic, Vladimir"]
[Black "Nilssen, John Arni"]
[Result "1/2-1/2"]
[ECO "B24"]
[WhiteElo "2387"]
[BlackElo "2301"]
[Annotator "RC"]
[PlyCount "89"]
[EventDate "2018.07.07"]
[EventType "swiss"]
[EventCountry "FAI"]
[SourceTitle "playchess.com"]
[Source "ChessBase"]
[SourceQuality "1"]
[TimeControl "40/5400+30:900+30"]

1. e4 {[%emt 0:00:00]} c5 {[%emt 0:00:00]} 2. Nc3 {[%emt 0:00:00]} Nc6 {[%emt 0:00:00]} 3. g3 {[%emt 0:00:00]} g6 {[%emt 0:00:00]} 4. Bg2 {[%emt 0:00:00]} Bg7 {[%emt 0:00:00]} 5. Nge2 {[%emt 0:00:07]} e6 {[%emt 0:01:07]} 6. O-O {[%emt 0:01:43]} Nge7 {[%emt 0:00:07]} 7. d3 {[%emt 0:01:49]} d6 {[%emt 0:00:17]} 8. h3 {[%emt 0:09:33]} Rb8 {[%emt 0:00:51]} 9. a4 {[%emt 0:00:16]} a6 {[%emt 0:00:06]} 10. g4 {[%emt 0:08:31]} b5 {[%emt 0:10:10]} 11. axb5 {[%emt 0:03:50]} axb5 {[%emt 0:00:07]} 12. Ng3 {[%emt 0:00:05]} Nd4 {[%emt 0:04:26]} 13. f4 {[%emt 0:03:08]} b4 {[%emt 0:02:00]} 14. Nce2 {[%emt 0:00:10]} f5 {[%emt 0:00:16]} 15. Nxd4 {[%emt 0:11:39]} Bxd4+ {[%emt 0:00:28]} 16. Kh2 {[%emt 0:02:55]} O-O {[%emt 0:02:47]} 17. exf5 {[%emt 0:11:00]} exf5 {[%emt 0:03:41]} 18. g5 {[%emt 0:01:27]} Bb7 {[%emt 0:01:57]} 19. Bxb7 {[%emt 0:04:25]} Rxb7 {[%emt 0:00:07]} 20. Qf3 {[%emt 0:00:58]} Qd7 {[%emt 0:00:13]} 21. Ne2 {[%emt 0:17:44]} Bg7 {[%emt 0:03:44]} 22. Ng1 {[%emt 0:04:06]} Rbb8 {[%emt 0:10:14]} 23. Ra6 {[%emt 0:01:16]} Rbe8 {[%emt 0:02:34]} 24. b3 {[%emt 0:02:32]} d5 {[%emt 0:07:51]} 25. Be3 {[%emt 0:05:03]} Qc7 {[%emt 0:17:10]} 26. Qf2 {[%emt 0:01:05]} d4 {[%emt 0:02:26]} 27. Bd2 {[%emt 0:00:02]} Ra8 {[%emt 0:09:56]} 28. Rfa1 {[%emt 0:00:19]} Qb7 {[%emt 0:02:25]} 29. Rxa8 {[%emt 0:02:14]} Rxa8 {[%emt 0:00:31]} 30. Qe1 {[%emt 0:00:33]} Kf7 {[%emt 0:02:12]} 31. Qf1 {[%emt 0:04:33]} Rxa1 {[%emt 0:07:52]} 32. Qxa1 {[%emt 0:00:01]} Nd5 {[%emt 0:00:34]} 33. Qa5 {[%emt 0:01:47]} Qc7 {[%emt 0:09:14]} 34. Qxc7+ {[%emt 0:00:09]} Nxc7 {[%emt 0:00:04]} 35. Kg2 {[%emt 0:01:05]} Bf8 {[%emt 0:00:24]} 36. Kf3 {[%emt 0:01:03]} Bd6 {[%emt 0:00:07]} 37. h4 {[%emt 0:00:46]} Ke6 {[%emt 0:00:59]} 38. Kg3 {[%emt 0:01:47]} Nb5 {[%emt 0:00:18]} 39. Nf3 {[%emt 0:00:19]} Na3 {[%emt 0:00:56]} 40. Ne1 {[%emt 0:00:02]} Nb1 {[%emt 0:01:03]} 41. Bc1 {[%emt 0:16:50]} Kd5 {[%emt 0:15:31]} 42. Kf2 {[%emt 0:00:00]} Bc7 {[%emt 0:00:00]} 43. Nf3 {[%emt 0:00:00]} Ke6 {[%emt 0:00:00]} 44. Ne1 {[%emt 0:00:00]} Nc3 {[%emt 0:00:00]} 45. Kf3 {[%emt 0:00:00]} 1/2-1/2

[Event "Faroes Open 2018"]
[Site "Sandavagur"]
[Date "2018.07.09"]
[Round "4"]
[White "Haubro, Martin"]
[Black "Esteve Sanchez, Sergio"]
[Result "1/2-1/2"]
[ECO "B90"]
[WhiteElo "2373"]
[BlackElo "1994"]
[Annotator "ChessBase"]
[PlyCount "80"]
[EventDate "2018.07.07"]
[EventType "swiss"]
[EventCountry "FAI"]
[SourceTitle "playchess.com"]
[Source "ChessBase"]
[SourceQuality "1"]
[TimeControl "40/5400+30:900+30"]

1. e4 {[%emt 0:00:00]} c5 {[%emt 0:00:00]} 2. Nf3 {[%emt 0:00:00]} d6 {[%emt 0:00:00]} 3. d4 cxd4 {[%emt 0:00:00]} 4. Nxd4 {[%emt 0:00:14]} Nf6 {[%emt 0:00:00]} 5. Nc3 {[%emt 0:00:03]} a6 {[%emt 0:00:08]} 6. h3 b5 {[%emt 0:07:15]} 7. g4 {[%emt 0:02:53]} Bb7 {[%emt 0:00:30]} 8. Bg2 {[%emt 0:00:06]} e6 {[%emt 0:05:33]} 9. g5 {[%emt 0:04:17]} b4 {[%emt 0:10:32]} 10. gxf6 {[%emt 0:03:24]} bxc3 {[%emt 0:01:07]} 11. fxg7 {[%emt 0:00:06]} Bxg7 {[%emt 0:00:25]} 12. bxc3 {[%emt 0:00:19]} Qc7 {[%emt 0:02:03]} 13. O-O {[%emt 0:07:58]} h5 {[%emt 0:07:25]} 14. Qd3 {[%emt 0:10:28]} Nd7 {[%emt 0:04:24]} 15. Qg3 {[%emt 0:06:21]} Bf6 {[%emt 0:08:06]} 16. Rb1 {[%emt 0:00:27]} h4 {[%emt 0:06:37]} 17. Qe3 {[%emt 0:05:06]} Rg8 {[%emt 0:02:11]} 18. Ba3 {[%emt 0:05:15]} O-O-O {[%emt 0:07:08]} 19. Kh1 {[%emt 0:01:13]} Bg5 {[%emt 0:03:15]} 20. Qe2 {[%emt 0:02:11]} Bf4 {[%emt 0:06:19]} 21. Qf3 {[%emt 0:13:32]} e5 {[%emt 0:02:43]} 22. Nf5 {[%emt 0:00:32]} Nf6 {[%emt 0:01:12]} 23. Rb4 {[%emt 0:08:54]} a5 {[%emt 0:03:07]} 24. Rxb7 {[%emt 0:00:04]} Kxb7 {[%emt 0:00:33]} 25. Qd3 {[%emt 0:02:04]} Ka7 {[%emt 0:10:32]} 26. Nxd6 {[%emt 0:04:23]} Qc6 {[%emt 0:02:32]} 27. Bf3 {[%emt 0:04:50]} Rb8 {[%emt 0:00:43]} 28. c4 {[%emt 0:00:12]} Rgd8 {[%emt 0:02:25]} 29. c5 {[%emt 0:02:53]} Ne8 {[%emt 0:00:39]} 30. c4 {[%emt 0:01:35]} Nc7 {[%emt 0:02:23]} 31. Qc3 {[%emt 0:00:37]} Ka6 {[%emt 0:00:13]} 32. Qd3 {[%emt 0:02:51]} Ne6 {[%emt 0:00:50]} 33. Qd5 {[%emt 0:00:21]} Nd4 {[%emt 0:00:28]} 34. Bg4 {[%emt 0:01:38]} Qa4 {[%emt 0:01:04]} 35. Bc1 {[%emt 0:05:08]} Rb1 {[%emt 0:01:35]} 36. Bxf4 {[%emt 0:05:14]} Rxf1+ {[%emt 0:00:17]} 37. Kg2 {[%emt 0:00:04]} Rxf2+ {[%emt 0:00:23]} 38. Kxf2 {[%emt 0:00:16]} Qxa2+ {[%emt 0:01:07]} 39. Ke1 {[%emt 0:01:24]} Qa1+ {[%emt 0:01:24]} 40. Kf2 {[%emt 0:02:06]} Qa2+ {[%emt 0:00:43]} 1/2-1/2

[Event "Faroes Open 2018"]
[Site "Sandavagur"]
[Date "2018.07.09"]
[Round "4"]
[White "Rodgaard, John"]
[Black "Ziska, Helgi Dam"]
[Result "0-1"]
[ECO "A48"]
[WhiteElo "2319"]
[BlackElo "2552"]
[Annotator "ChessBase"]
[PlyCount "56"]
[EventDate "2018.07.07"]
[EventType "swiss"]
[EventCountry "FAI"]
[SourceTitle "playchess.com"]
[Source "ChessBase"]
[SourceQuality "1"]
[TimeControl "40/5400+30:900+30"]

1. d4 {[%emt 0:00:00]} Nf6 {[%emt 0:01:15]} 2. Nf3 {[%emt 0:00:24]} g6 {[%emt 0:00:12]} 3. c4 {[%emt 0:00:41]} Bg7 {[%emt 0:00:10]} 4. Nc3 {[%emt 0:00:34]} d6 {[%emt 0:00:51]} 5. e3 {[%emt 0:02:31]} O-O {[%emt 0:02:11]} 6. Be2 {[%emt 0:02:24]} Nbd7 {[%emt 0:02:44]} 7. O-O {[%emt 0:01:16]} e5 {[%emt 0:00:32]} 8. b4 {[%emt 0:01:04]} exd4 {[%emt 0:08:43]} 9. exd4 {[%emt 0:01:39]} Nb6 {[%emt 0:01:47]} 10. Qb3 {[%emt 0:17:22]} a5 {[%emt 0:15:05]} 11. b5 {[%emt 0:07:35]} a4 {[%emt 0:00:45]} 12. Qb4 {[%emt 0:05:16]} Re8 {[%emt 0:08:43]} 13. Be3 {[%emt 0:09:31]} Bf5 {[%emt 0:14:16]} 14. Rfe1 {[%emt 0:07:22]} Bf8 {[%emt 0:04:01]} 15. Rac1 {[%emt 0:19:24]} Nxc4 {[%emt 0:04:03]} 16. Qxc4 {[%emt 0:04:59]} d5 {[%emt 0:00:06]} 17. Nxd5 {[%emt 0:00:16]} Nxd5 {[%emt 0:01:02]} 18. Bg5 {[%emt 0:00:55]} Qd6 {[%emt 0:00:14]} 19. Bh4 {[%emt 0:11:09]} Nb6 {[%emt 0:12:39]} 20. Qc3 {[%emt 0:01:58]} Qa3 {[%emt 0:00:26]} 21. Qxc7 {[%emt 0:01:01]} Rac8 {[%emt 0:00:43]} 22. Qxb6 {[%emt 0:02:36]} Rxc1 {[%emt 0:00:08]} 23. Kf1 {[%emt 0:00:25]} Rxe2 {[%emt 0:02:09]} 24. Rxc1 {[%emt 0:00:42]} Qxc1+ {[%emt 0:00:39]} 25. Kxe2 {[%emt 0:00:04]} Qc4+ {[%emt 0:00:15]} 26. Ke3 {[%emt 0:01:12]} Qd3+ {[%emt 0:00:08]} 27. Kf4 {[%emt 0:00:11]} Qe4+ {[%emt 0:00:06]} 28. Kg3 {[%emt 0:00:51]} Qg4# {[%emt 0:00:08]} 0-1

[Event "Faroes Open 2018"]
[Site "Sandavagur"]
[Date "2018.07.09"]
[Round "4"]
[White "Nilssen, Ellen Fredericia"]
[Black "Vavulin, Maksim"]
[Result "0-1"]
[ECO "A04"]
[WhiteElo "2152"]
[BlackElo "2552"]
[Annotator "ChessBase"]
[PlyCount "64"]
[EventDate "2018.07.07"]
[EventType "swiss"]
[EventCountry "FAI"]
[SourceTitle "playchess.com"]
[Source "ChessBase"]
[SourceQuality "1"]
[TimeControl "40/5400+30:900+30"]

1. Nf3 {[%emt 0:00:00]} g6 {[%emt 0:00:00]} 2. g3 {[%emt 0:00:36]} Bg7 {[%emt 0:00:00]} 3. Bg2 {[%emt 0:00:58]} e5 {[%emt 0:00:03]} 4. d3 {[%emt 0:01:38]} f5 {[%emt 0:00:30]} 5. e4 {[%emt 0:07:33]} Ne7 {[%emt 0:02:41]} 6. O-O {[%emt 0:03:16]} O-O {[%emt 0:00:21]} 7. Re1 {[%emt 0:07:15]} Nbc6 {[%emt 0:00:37]} 8. Nbd2 {[%emt 0:01:28]} d6 {[%emt 0:00:52]} 9. Nf1 {[%emt 0:02:52]} f4 {[%emt 0:01:57]} 10. c3 {[%emt 0:07:42]} h6 {[%emt 0:00:49]} 11. d4 {[%emt 0:04:11]} g5 {[%emt 0:06:13]} 12. h3 {[%emt 0:02:36]} Qe8 {[%emt 0:01:10]} 13. d5 {[%emt 0:05:22]} Nb8 {[%emt 0:01:35]} 14. g4 {[%emt 0:00:48]} Nd7 {[%emt 0:01:10]} 15. N3d2 {[%emt 0:02:38]} a5 {[%emt 0:05:21]} 16. a4 {[%emt 0:05:27]} Nc5 {[%emt 0:03:14]} 17. Nb1 {[%emt 0:05:21]} Bd7 {[%emt 0:11:50]} 18. b3 {[%emt 0:02:09]} c6 {[%emt 0:01:14]} 19. c4 {[%emt 0:03:57]} cxd5 {[%emt 0:01:45]} 20. exd5 {[%emt 0:00:26]} e4 {[%emt 0:02:33]} 21. Ra2 {[%emt 0:01:13]} Ng6 {[%emt 0:04:45]} 22. Bxe4 {[%emt 0:03:15]} Nxe4 {[%emt 0:00:40]} 23. Qc2 {[%emt 0:02:45]} Ne5 {[%emt 0:01:39]} 24. Rxe4 {[%emt 0:00:13]} h5 {[%emt 0:01:17]} 25. Nh2 {[%emt 0:01:46]} hxg4 {[%emt 0:00:13]} 26. hxg4 {[%emt 0:00:39]} Qg6 {[%emt 0:02:09]} 27. f3 {[%emt 0:02:23]} Nxf3+ {[%emt 0:03:50]} 28. Nxf3 {[%emt 0:01:34]} Bxg4 {[%emt 0:00:05]} 29. Qe2 {[%emt 0:03:09]} Rae8 {[%emt 0:01:24]} 30. Nbd2 {[%emt 0:05:03]} Bd4+ {[%emt 0:00:39]} 31. Kf1 {[%emt 0:02:53]} Qh5 {[%emt 0:05:08]} 32. Qg2 {[%emt 0:00:24]} Bh3 {[%emt 0:01:45]} 0-1

[Event "Faroes Open 2018"]
[Site "Sandavagur"]
[Date "2018.07.09"]
[Round "4"]
[White "Nielsen, Torkil"]
[Black "Kristiansen, Jens"]
[Result "0-1"]
[ECO "B06"]
[WhiteElo "2115"]
[BlackElo "2380"]
[Annotator "ChessBase"]
[PlyCount "62"]
[EventDate "2018.07.07"]
[EventType "swiss"]
[EventCountry "FAI"]
[SourceTitle "playchess.com"]
[Source "ChessBase"]
[SourceQuality "1"]
[TimeControl "40/5400+30:900+30"]

1. e4 {[%emt 0:00:00]} g6 {[%emt 0:00:00]} 2. d4 {[%emt 0:00:18]} Bg7 {[%emt 0:00:00]} 3. Nf3 {[%emt 0:02:22]} d6 {[%emt 0:00:05]} 4. Bc4 {[%emt 0:00:43]} Nf6 {[%emt 0:00:31]} 5. Qe2 {[%emt 0:01:01]} O-O {[%emt 0:00:56]} 6. O-O {[%emt 0:00:39]} Bg4 {[%emt 0:04:24]} 7. Nc3 {[%emt 0:07:23]} Nc6 {[%emt 0:02:53]} 8. Be3 {[%emt 0:06:53]} e5 {[%emt 0:03:04]} 9. d5 {[%emt 0:05:42]} Nd4 {[%emt 0:03:25]} 10. Bxd4 {[%emt 0:02:12]} exd4 {[%emt 0:00:08]} 11. Nb5 {[%emt 0:01:24]} Re8 {[%emt 0:01:26]} 12. Nbxd4 {[%emt 0:08:20]} Rxe4 {[%emt 0:11:20]} 13. Qd3 {[%emt 0:03:59]} Bxf3 {[%emt 0:11:21]} 14. Nxf3 {[%emt 0:01:24]} Qd7 {[%emt 0:05:12]} 15. Rae1 {[%emt 0:13:50]} Rae8 {[%emt 0:02:18]} 16. Bb5 {[%emt 0:06:32]} c6 {[%emt 0:00:13]} 17. dxc6 {[%emt 0:00:05]} bxc6 {[%emt 0:00:05]} 18. Bc4 {[%emt 0:00:38]} d5 {[%emt 0:02:10]} 19. Bb3 {[%emt 0:00:28]} Qe7 {[%emt 0:03:38]} 20. Rd1 {[%emt 0:03:10]} Qc5 {[%emt 0:03:09]} 21. c3 {[%emt 0:05:44]} Ng4 {[%emt 0:04:34]} 22. h3 {[%emt 0:09:35]} Ne3 {[%emt 0:01:55]} 23. fxe3 {[%emt 0:02:54]} Rxe3 {[%emt 0:00:40]} 24. Qb1 {[%emt 0:00:08]} Rxf3+ {[%emt 0:00:17]} 25. Kh1 {[%emt 0:00:08]} Rxf1+ {[%emt 0:04:45]} 26. Rxf1 {[%emt 0:01:20]} Re2 {[%emt 0:01:08]} 27. Re1 {[%emt 0:07:23]} Qf2 {[%emt 0:00:40]} 28. Rxe2 {[%emt 0:00:07]} Qxe2 {[%emt 0:00:05]} 29. Ba4 {[%emt 0:02:23]} c5 {[%emt 0:01:30]} 30. Qd1 {[%emt 0:03:03]} Qxb2 {[%emt 0:01:35]} 31. Be8 {[%emt 0:03:23]} Qxc3 {[%emt 0:01:09]} 0-1

[Event "Faroes Open 2018"]
[Site "Sandavagur"]
[Date "2018.07.09"]
[Round "4"]
[White "Hruby, Milan"]
[Black "Simonsen, Hans Kristian"]
[Result "1-0"]
[ECO "D35"]
[WhiteElo "2031"]
[BlackElo "2150"]
[Annotator "NA"]
[PlyCount "49"]
[EventDate "2018.07.07"]
[EventType "swiss"]
[EventCountry "FAI"]
[SourceTitle "playchess.com"]
[Source "ChessBase"]
[SourceQuality "1"]
[TimeControl "40/5400+30:900+30"]

1. d4 {[%emt 0:00:00]} Nf6 {[%emt 0:00:00]} 2. c4 {[%emt 0:00:00]} e6 {[%emt 0:00:00]} 3. Nc3 d5 {[%emt 0:00:05]} 4. cxd5 {[%emt 0:00:16]} Nxd5 {[%emt 0:00:05]} 5. e4 {[%emt 0:00:14]} Nxc3 {[%emt 0:00:07]} 6. bxc3 {[%emt 0:00:05]} c5 {[%emt 0:00:33]} 7. a3 {[%emt 0:00:20]} Nd7 {[%emt 0:01:13]} 8. Nf3 {[%emt 0:00:27]} Qc7 {[%emt 0:00:56]} 9. Be2 {[%emt 0:03:49]} b6 {[%emt 0:00:44]} 10. O-O {[%emt 0:00:28]} Bb7 {[%emt 0:00:20]} 11. Bd3 {[%emt 0:13:49]} Be7 {[%emt 0:00:29]} 12. e5 {[%emt 0:10:23]} O-O {[%emt 0:01:55]} 13. Ng5 {[%emt 0:05:24]} Bxg5 {[%emt 0:01:16]} 14. Bxg5 {[%emt 0:00:06]} Rfc8 {[%emt 0:01:35]} 15. Qg4 {[%emt 0:04:40]} Nf8 {[%emt 0:00:32]} 16. h4 {[%emt 0:01:02]} cxd4 {[%emt 0:05:05]} 17. cxd4 {[%emt 0:01:40]} Qc3 {[%emt 0:01:37]} 18. Rfd1 {[%emt 0:06:24]} Kh8 {[%emt 0:01:17]} 19. h5 {[%emt 0:04:15]} h6 {[%emt 0:00:09]} 20. Bf6 gxf6 {[%emt 0:00:24]} 21. exf6 {[%emt 0:07:12]} Ng6 {[%emt 0:02:37]} 22. hxg6 {[%emt 0:00:23]} Qa5 {[%emt 0:01:13]} 23. Re1 {[%emt 0:22:03]} Rc3 {[%emt 0:03:13]} 24. Re5 {[%emt 0:03:45]} Rxd3 {[%emt 0:03:53]} 25. gxf7 {[%emt 0:03:12]} 1-0

[Event "Faroes Open 2018"]
[Site "Sandavagur"]
[Date "2018.07.09"]
[Round "4"]
[White "Fruehauf, Norbert"]
[Black "Olsen, Kaj"]
[Result "1-0"]
[ECO "C42"]
[WhiteElo "1958"]
[BlackElo "1696"]
[Annotator "NA"]
[PlyCount "59"]
[EventDate "2018.07.07"]
[EventType "swiss"]
[EventCountry "FAI"]
[SourceTitle "playchess.com"]
[Source "ChessBase"]
[SourceQuality "1"]
[TimeControl "40/5400+30:900+30"]

1. e4 {[%emt 0:00:00]} e5 {[%emt 0:00:00]} 2. Nf3 {[%emt 0:00:00]} Nf6 {[%emt 0:00:00]} 3. Nxe5 {[%emt 0:00:00]} d6 {[%emt 0:00:00]} 4. Nf3 {[%emt 0:00:01]} Nxe4 {[%emt 0:00:02]} 5. d4 d5 {[%emt 0:00:11]} 6. Bd3 {[%emt 0:00:17]} Bf5 {[%emt 0:01:27]} 7. O-O {[%emt 0:00:28]} Be7 {[%emt 0:00:13]} 8. Re1 {[%emt 0:00:54]} Nd7 {[%emt 0:00:22]} 9. c4 {[%emt 0:01:58]} c6 {[%emt 0:00:13]} 10. Qc2 {[%emt 0:06:53]} Ndf6 {[%emt 0:01:47]} 11. Ne5 {[%emt 0:02:49]} O-O {[%emt 0:04:48]} 12. f3 {[%emt 0:00:16]} Bb4 {[%emt 0:02:13]} 13. Rd1 {[%emt 0:02:26]} Re8 {[%emt 0:05:35]} 14. fxe4 {[%emt 0:02:19]} dxe4 {[%emt 0:01:12]} 15. Be2 {[%emt 0:00:14]} c5 {[%emt 0:05:19]} 16. Be3 {[%emt 0:01:55]} Rc8 {[%emt 0:03:02]} 17. a3 {[%emt 0:10:29]} Ba5 {[%emt 0:02:03]} 18. b4 {[%emt 0:00:16]} cxb4 {[%emt 0:00:31]} 19. axb4 {[%emt 0:00:01]} Bxb4 {[%emt 0:00:23]} 20. Rxa7 {[%emt 0:00:41]} Qb6 {[%emt 0:00:34]} 21. Ra4 {[%emt 0:04:27]} Rxe5 {[%emt 0:08:38]} 22. Rxb4 {[%emt 0:00:09]} Qxb4 {[%emt 0:00:23]} 23. dxe5 {[%emt 0:00:10]} Ng4 {[%emt 0:01:36]} 24. Bxg4 {[%emt 0:02:48]} Bxg4 {[%emt 0:00:11]} 25. Qd2 {[%emt 0:00:59]} Qf8 {[%emt 0:03:27]} 26. Rc1 {[%emt 0:02:34]} Rd8 {[%emt 0:00:24]} 27. Qf2 {[%emt 0:06:53]} Qb4 {[%emt 0:03:05]} 28. Nd2 {[%emt 0:03:24]} Qb2 {[%emt 0:01:14]} 29. Nxe4 {[%emt 0:01:45]} Qxe5 {[%emt 0:01:20]} 30. Qh4 {[%emt 0:04:49]} 1-0

[Event "Faroes Open 2018"]
[Site "Sandavagur"]
[Date "2018.07.09"]
[Round "4"]
[White "Haubro, Siv"]
[Black "Jacobsen, Markus"]
[Result "1-0"]
[ECO "C02"]
[WhiteElo "1780"]
[BlackElo "1106"]
[Annotator "NA"]
[PlyCount "31"]
[EventDate "2018.07.07"]
[EventType "swiss"]
[EventCountry "FAI"]
[SourceTitle "playchess.com"]
[Source "ChessBase"]
[SourceQuality "1"]
[TimeControl "40/5400+30:900+30"]

1. e4 {[%emt 0:00:00]} e6 2. d4 {[%emt 0:00:15]} d5 {[%emt 0:00:00]} 3. e5 {[%emt 0:00:09]} c5 {[%emt 0:00:06]} 4. c3 {[%emt 0:00:25]} g6 {[%emt 0:00:59]} 5. Nf3 {[%emt 0:00:51]} Qa5 {[%emt 0:01:45]} 6. Nbd2 {[%emt 0:05:33]} c4 {[%emt 0:02:41]} 7. Be2 {[%emt 0:01:12]} Nc6 {[%emt 0:02:42]} 8. O-O {[%emt 0:01:27]} Bd7 {[%emt 0:01:53]} 9. Re1 {[%emt 0:03:42]} O-O-O {[%emt 0:02:31]} 10. Nf1 {[%emt 0:08:02]} Bg7 {[%emt 0:04:25]} 11. Bg5 {[%emt 0:03:44]} Nce7 {[%emt 0:01:32]} 12. b4 {[%emt 0:02:35]} cxb3 {[%emt 0:01:27]} 13. axb3 {[%emt 0:00:16]} Qb6 {[%emt 0:01:28]} 14. Qc2 {[%emt 0:03:02]} Kb8 {[%emt 0:02:11]} 15. c4 {[%emt 0:08:48]} Rc8 {[%emt 0:02:00]} 16. c5 1-0